bitfinex-derivatives/quotes_BNBF0:USTF0_20250524
["timestamp","ask_amount","ask_price","bid_price","bid_amount"]
[1748057453321,0.48736045,666.1,665.52,1.144]
[1748057453523,0.48736045,666.09,665.52,2.17112795]
[1748057453719,0.48736045,666.08,665.52,2.17112795]
[1748057454023,0.48736045,666.07,665.52,2.17112795]
[1748057454325,1.49756613,666.22,665.52,2.17112795]
[1748057454524,0.48737111,666.21,665.52,2.17112795]
[1748057454721,0.48737111,666.2,665.52,2.17112795]
[1748057454918,0.48737111,666.19,665.52,2.17112795]
[1748057455123,0.48737111,666.18,665.52,2.17112795]
[1748057455325,1.49756613,666.22,665.52,2.17112795]
[1748057455525,0.48739158,666.21,665.52,2.17112795]
[1748057455725,0.48739158,666.2,665.52,2.17112795]
[1748057455926,0.48739158,666.19,665.53,1.59]
[1748057456126,0.48739158,666.18,665.53,1.59]
[1748057456425,0.48739158,666.17,665.53,1.59]
[1748057456629,0.48739158,666.16,665.53,1.59]
[1748057456819,0.48739158,666.15,665.53,1.59]
[1748057457020,0.48739158,666.14,665.53,1.59]
[1748057457220,0.48744173,666.13,665.53,1.59]
[1748057457427,0.48744173,666.12,665.53,1.59]
[1748057457627,0.48744173,666.11,665.53,1.59]
[1748057457827,0.48744173,666.1,665.53,1.59]
[1748057458026,0.48744173,666.09,665.53,1.59]
[1748057458327,0.48744173,666.08,665.53,1.59]
[1748057458626,0.48744173,666.07,665.53,1.59]
[1748057458927,0.48744173,666.06,665.53,1.59]
[1748057459226,0.48749137,666.05,665.53,1.59]
[1748057459428,1.49756613,666.2,665.53,1.59]
[1748057459627,0.48749762,666.19,665.53,1.59]
[1748057459927,0.48749762,666.18,665.53,2.61712795]
[1748057460127,0.48749762,666.17,665.53,2.61712795]
[1748057460327,0.48749762,666.16,665.53,2.61712795]
[1748057460523,0.48749762,666.15,665.53,2.61712795]
[1748057460727,0.48749747,666.14,665.53,2.61712795]
[1748057460926,0.48749747,666.13,665.53,2.61712795]
[1748057461127,0.48749747,666.12,665.53,2.61712795]
[1748057461328,0.48749747,666.11,665.53,2.61712795]
[1748057461633,0.48749747,666.1,665.53,2.61712795]
[1748057461831,0.48749747,666.09,665.54,1.461]
[1748057462025,0.48752053,666.08,665.54,1.461]
[1748057462228,0.48752053,666.07,665.55,1.02712795]
[1748057462424,0.48752053,666.06,665.55,1.02712795]
[1748057462627,1.49756613,666.18,665.55,1.02712795]
[1748057462828,0.48755502,666.17,665.55,1.02712795]
[1748057463030,0.48755502,666.16,665.55,1.02712795]
[1748057463226,0.48755502,666.15,665.55,1.02712795]
[1748057463427,0.48755502,666.14,665.55,1.02712795]
[1748057463625,0.48755502,666.13,665.55,1.02712795]
[1748057463831,0.4875607,666.12,665.55,1.02712795]
[1748057464027,0.4875607,666.11,665.55,1.02712795]
[1748057464231,0.4875607,666.1,665.55,1.02712795]
[1748057464432,0.4875607,666.09,665.55,1.02712795]
[1748057464632,0.4875607,666.08,665.55,1.02712795]
[1748057464828,0.4875607,666.07,665.55,1.02712795]
[1748057465031,0.4875607,666.06,665.56,1.02712795]
[1748057465232,1.49756613,666.16,665.56,1.02712795]
[1748057465432,0.4875716,666.15,665.56,1.02712795]
[1748057465734,0.48763499,666.14,665.56,1.02712795]
[1748057465928,0.48763499,666.13,665.56,1.02712795]
[1748057466132,0.48763499,666.12,665.56,1.02712795]
[1748057466332,0.48763499,666.11,665.56,1.02712795]
[1748057466529,0.48763499,666.1,665.56,1.02712795]
[1748057466731,0.48763499,666.09,665.56,1.02712795]
[1748057466933,0.48763499,666.08,665.56,1.02712795]
[1748057467136,0.48763499,666.07,665.56,1.02712795]
[1748057467431,1.49756613,666.16,665.56,1.02712795]
[1748057467636,0.48766541,666.15,665.56,1.02712795]
[1748057467836,0.48766541,666.14,665.56,1.02712795]
[1748057468137,0.48766541,666.13,665.56,1.02712795]
[1748057468330,0.48766541,666.12,665.56,1.02712795]
[1748057468536,0.48766541,666.11,665.56,1.02712795]
[1748057468733,0.48766541,666.1,665.56,1.02712795]
[1748057468932,0.48766541,666.09,665.56,1.02712795]
[1748057469132,0.48766541,666.08,665.54,1.461]
[1748057469335,0.48763229,666.07,665.54,1.461]
[1748057469633,0.48763229,666.06,665.54,1.461]
[1748057469834,0.48763229,666.05,665.54,1.461]
[1748057470133,1.49756613,666.21,665.54,1.461]
[1748057470331,0.48764768,666.2,665.54,1.461]
[1748057470531,0.48764768,666.19,665.54,1.461]
[1748057470731,0.48764768,666.18,665.54,1.461]
[1748057470931,0.48764768,666.17,665.54,1.461]
[1748057471135,0.48764768,666.16,665.54,1.461]
[1748057471432,0.48764768,666.15,665.54,1.461]
[1748057471633,0.48764768,666.14,665.54,1.461]
[1748057471835,0.48764768,666.13,665.55,3.025]
[1748057472032,0.48764768,666.12,665.55,3.025]
[1748057472337,0.48764768,666.11,665.55,3.025]
[1748057472633,0.48764768,666.1,665.55,3.025]
[1748057472837,0.48764768,666.09,665.55,3.025]
[1748057473038,0.48764768,666.08,665.55,3.025]
[1748057473234,0.48764768,666.07,665.55,3.025]
[1748057473439,0.48764768,666.06,665.55,3.025]
[1748057473738,0.48764768,666.05,665.55,3.025]
[1748057473939,0.48764768,666.04,665.55,3.025]
[1748057474139,1.49756613,666.22,665.55,3.025]
[1748057474332,0.48770834,666.21,665.55,3.025]
[1748057474532,0.48770834,666.2,665.55,3.025]
[1748057474736,0.48770834,666.19,665.55,3.025]
[1748057474938,1.49756613,666.22,665.55,3.025]
[1748057474939,0.48770834,666.18,665.55,3.025]
[1748057475139,0.48770834,666.17,665.55,3.025]
[1748057475341,0.48770834,666.16,665.55,3.025]
[1748057475541,0.48770834,666.15,665.55,3.025]
[1748057475742,0.48770834,666.14,665.55,3.025]
[1748057476042,0.48770834,666.13,665.55,3.025]
[1748057476245,0.48770834,666.12,665.55,3.025]
[1748057476443,0.48770834,666.11,665.55,3.025]
[1748057476640,0.48770834,666.1,665.55,3.025]
[1748057476842,0.48770834,666.09,665.55,3.025]
[1748057477142,0.48770834,666.08,665.55,3.025]
[1748057477342,0.48770834,666.07,665.55,3.025]
[1748057477536,0.48770834,666.06,665.55,3.025]
[1748057477736,0.48770834,666.05,665.55,3.025]
[1748057477943,0.48770834,666.04,665.55,3.025]
[1748057478137,1.49756613,666.21,665.55,3.025]
[1748057478341,0.48770497,666.2,665.55,3.025]
[1748057478537,0.48770374,666.19,665.55,3.025]
[1748057478740,0.48770374,666.18,665.55,3.025]
[1748057478941,0.48770374,666.17,665.55,3.025]
[1748057479144,0.48770374,666.16,665.55,3.025]
[1748057479346,0.48770374,666.15,665.55,3.025]
[1748057479545,0.48770374,666.14,665.56,1.528]
[1748057479847,0.48770374,666.13,665.56,1.528]
[1748057480139,0.48770374,666.12,665.56,1.528]
[1748057480344,0.48770374,666.11,665.56,1.528]
[1748057480541,0.48770374,666.1,665.56,1.528]
[1748057480739,0.48770374,666.09,665.56,1.528]
[1748057480938,1.49756613,666.17,665.56,1.528]
[1748057480939,0.48770374,666.08,665.56,1.528]
[1748057481138,0.48770374,666.07,665.56,1.528]
[1748057481342,0.48770374,666.06,665.56,1.528]
[1748057481538,0.48770374,666.05,665.56,1.528]
[1748057481744,1.49756613,666.17,665.56,1.528]
[1748057481946,0.48769076,666.16,665.56,1.528]
[1748057482146,0.48769076,666.15,665.56,1.528]
[1748057482348,1.98525689,666.14,665.57,1.02712795]
[1748057482546,0.48769076,666.13,665.57,1.02712795]
[1748057482741,0.48769076,666.12,665.57,1.02712795]
[1748057482941,0.48769076,666.11,665.57,1.02712795]
[1748057483144,0.48769076,666.1,665.57,1.02712795]
[1748057483346,0.48769076,666.09,665.57,1.02712795]
[1748057483545,0.48769076,666.08,665.57,1.02712795]
[1748057483747,0.48769076,666.07,665.57,1.02712795]
[1748057483946,0.48769076,666.06,665.57,1.02712795]
[1748057484145,0.48769076,666.05,665.57,1.02712795]
[1748057484345,1.49756613,666.14,665.57,1.02712795]
[1748057484541,0.48754519,666.13,665.57,1.02712795]
[1748057484745,0.48754519,666.12,665.57,1.02712795]
[1748057484942,0.48754519,666.11,665.57,1.02712795]
[1748057485144,0.48754519,666.1,665.57,1.02712795]
[1748057485345,0.48754519,666.09,665.57,1.02712795]
[1748057485542,0.48754519,666.08,665.57,1.02712795]
[1748057485747,0.48754519,666.07,665.57,1.02712795]
[1748057485945,0.48754519,666.06,665.58,1.02712795]
[1748057486145,0.48754519,666.05,665.58,1.02712795]
[1748057486349,1.49756613,666.13,665.58,1.02712795]
[1748057486550,0.48754727,666.12,665.58,1.02712795]
[1748057486751,0.48754727,666.11,665.58,1.02712795]
[1748057486944,0.48754727,666.1,665.58,1.02712795]
[1748057487149,0.48754727,666.09,665.58,1.02712795]
[1748057487450,0.48754891,666.08,665.58,1.02712795]
[1748057487650,0.48754891,666.07,665.58,1.02712795]
[1748057487850,0.48754891,666.06,665.58,1.02712795]
[1748057488047,0.48754891,666.05,665.58,1.02712795]
[1748057488351,1.49756613,666.13,665.58,1.02712795]
[1748057488553,0.48756087,666.12,665.58,1.02712795]
[1748057488752,0.48756087,666.11,665.58,1.02712795]
[1748057488953,0.48756087,666.1,665.58,1.02712795]
[1748057489152,0.48756087,666.09,665.58,1.02712795]
[1748057489453,0.48756087,666.08,665.58,1.02712795]
[1748057489654,0.48756087,666.07,665.58,1.02712795]
[1748057489854,0.48756087,666.06,665.58,1.02712795]
[1748057490054,0.48756087,666.05,665.58,1.02712795]
[1748057490261,0.48756087,666.04,665.58,1.02712795]
[1748057490554,1.49756613,666.12,665.58,1.02712795]
[1748057490752,0.48759332,666.11,665.58,1.02712795]
[1748057490951,0.48759332,666.1,665.59,1.701]
[1748057491155,0.48759408,666.09,665.59,1.701]
[1748057491453,0.48759408,666.08,665.59,1.701]
[1748057491655,0.48759408,666.07,665.59,1.701]
[1748057491875,0.48759408,666.06,665.59,1.701]
[1748057492054,0.48759408,666.05,665.59,1.701]
[1748057492251,0.48759408,666.04,665.59,1.701]
[1748057492455,0.48759408,666.03,665.59,1.701]
[1748057492650,0.48759408,666.02,665.59,1.701]
[1748057492855,1.49756613,666.18,665.59,1.701]
[1748057493051,0.48773273,666.17,665.59,1.701]
[1748057493254,0.48773273,666.16,665.59,1.701]
[1748057493552,0.48773273,666.15,665.59,1.701]
[1748057493752,0.48773273,666.14,665.59,1.701]
[1748057493953,0.48773273,666.13,665.59,1.701]
[1748057494155,0.48773273,666.12,665.59,1.701]
[1748057494352,0.48773273,666.11,665.59,1.701]
[1748057494558,0.48773273,666.1,665.59,1.701]
[1748057494855,0.48773273,666.09,665.59,1.701]
[1748057495052,0.48773273,666.08,665.59,1.701]
[1748057495251,0.48773273,666.07,665.59,1.701]
[1748057495556,0.48773273,666.06,665.59,1.701]
[1748057495756,0.48773273,666.05,665.59,1.701]
[1748057495950,0.48773273,666.04,665.59,1.701]
[1748057496154,0.48773273,666.03,665.59,1.701]
[1748057496355,0.48773273,666.02,665.59,1.701]
[1748057496551,0.48773273,666.01,665.59,1.701]
[1748057496756,0.48773273,666.0,665.59,1.701]
[1748057496953,0.48773273,665.99,665.59,1.701]
[1748057497157,0.48773273,665.98,665.59,1.701]
[1748057497358,0.48773273,665.97,665.59,1.701]
[1748057497558,0.48773273,665.96,665.6,1.427]
[1748057497756,0.48773273,665.95,665.6,1.427]
[1748057497953,1.49756613,666.12,665.6,1.427]
[1748057497954,0.48773273,665.94,665.6,1.427]
[1748057498257,0.48773273,665.93,665.6,1.427]
[1748057498454,0.48730736,665.92,665.6,1.427]
[1748057498657,0.48730736,665.91,665.6,1.427]
[1748057498860,0.48730736,665.9,665.6,1.427]
[1748057499055,0.48730736,665.89,665.6,1.427]
[1748057499260,1.49756613,666.11,665.6,1.427]
[1748057499455,0.4871284,666.1,665.6,1.427]
[1748057499754,1.49756613,666.11,665.6,1.427]
[1748057499755,0.4871284,666.09,665.6,1.427]
[1748057499959,0.4871284,666.08,665.6,1.427]
[1748057500161,0.4871284,666.07,665.61,1.366]
[1748057500360,0.48711925,666.06,665.61,1.366]
[1748057500560,0.48711925,666.05,665.61,1.366]
[1748057500760,0.48711925,666.04,665.61,1.366]
[1748057500961,0.48711925,666.03,665.61,1.366]
[1748057501165,0.48711925,666.02,665.61,1.366]
[1748057501367,0.48711925,666.01,665.61,1.366]
[1748057501566,0.48711925,666.0,665.61,1.366]
[1748057501766,0.48711925,665.99,665.61,1.366]
[1748057501966,0.48711925,665.98,665.61,1.366]
[1748057502166,0.48711925,665.97,665.61,1.366]
[1748057502368,0.48711925,665.96,665.61,1.366]
[1748057502666,0.48711925,665.95,665.61,1.366]
[1748057502863,0.48711925,665.94,665.61,1.366]
[1748057503067,0.48711925,665.93,665.61,1.366]
[1748057503269,0.48711925,665.92,665.61,1.366]
[1748057503566,0.48711925,665.91,665.61,1.366]
[1748057503764,1.49756613,666.13,665.61,1.366]
[1748057503968,0.48682989,666.12,665.61,1.366]
[1748057504168,0.48682989,666.11,665.61,1.366]
[1748057504369,0.48682989,666.1,665.61,1.366]
[1748057504565,0.48682989,666.09,665.61,1.366]
[1748057504770,0.48682989,666.08,665.61,1.366]
[1748057505064,0.48682989,666.07,665.61,1.366]
[1748057505262,0.48682989,666.06,665.61,1.366]
[1748057505468,0.48682989,666.05,665.61,1.366]
[1748057505668,0.48682989,666.04,665.61,1.366]
[1748057505869,0.48671285,666.03,665.61,1.366]
[1748057506069,0.48671285,666.02,665.61,1.366]
[1748057506265,0.48671285,666.01,665.61,1.366]
[1748057506472,0.48671285,666.0,665.61,1.366]
[1748057506667,0.48671285,665.99,665.61,1.366]
[1748057506873,0.48671285,665.98,665.61,1.366]
[1748057507174,0.48671285,665.97,665.61,1.366]
[1748057507371,0.48671285,665.96,665.61,1.366]
[1748057507667,0.48662149,665.95,665.61,1.366]
[1748057507871,0.48662149,665.94,665.61,1.366]
[1748057508072,0.48662149,665.93,665.61,1.366]
[1748057508273,0.48662149,665.92,665.61,1.366]
[1748057508473,1.49756613,666.16,665.61,1.366]
[1748057508675,0.78681271,666.15,665.61,1.366]
[1748057508871,0.48658003,666.14,665.61,1.366]
[1748057509072,0.48658003,666.13,665.61,1.366]
[1748057509272,0.48658003,666.12,665.61,1.366]
[1748057509472,0.48658003,666.11,665.61,1.366]
[1748057509673,0.48658003,666.1,665.61,1.366]
[1748057509873,0.48658003,666.09,665.61,1.366]
[1748057510068,0.48658003,666.08,665.61,1.366]
[1748057510265,0.48658003,666.07,665.61,1.366]
[1748057510470,0.48658003,666.06,665.61,1.366]
[1748057510667,0.48658003,666.05,665.61,1.366]
[1748057510871,0.48658003,666.04,665.61,1.366]
[1748057511072,0.48658003,666.03,665.61,1.366]
[1748057511275,0.48658003,666.02,665.61,1.366]
[1748057511471,0.48658003,666.01,665.61,1.366]
[1748057511673,0.48658003,666.0,665.61,1.366]
[1748057511872,0.48658003,665.99,665.61,1.366]
[1748057512074,0.48658003,665.98,665.61,1.366]
[1748057512273,0.48658003,665.97,665.61,1.366]
[1748057512474,0.48658003,665.96,665.61,1.366]
[1748057512674,0.48658003,665.95,665.61,1.366]
[1748057512876,0.48658003,665.94,665.61,1.366]
[1748057513074,0.48658003,665.93,665.61,1.366]
[1748057513274,0.48645545,665.92,665.6,1.427]
[1748057513476,1.79779881,666.15,665.6,1.427]
[1748057513777,0.48642415,666.14,665.61,1.245]
[1748057513972,0.48642415,666.13,665.61,1.245]
[1748057514176,0.48642415,666.12,665.61,1.245]
[1748057514476,0.48642415,666.11,665.61,1.245]
[1748057514673,0.48642415,666.1,665.61,1.245]
[1748057514876,0.48642415,666.09,665.61,1.245]
[1748057515079,0.48642415,666.08,665.61,1.245]
[1748057515377,0.48642415,666.07,665.61,1.245]
[1748057515578,0.48642415,666.06,665.61,1.245]
[1748057515878,0.48642415,666.05,665.61,1.245]
[1748057516074,0.48642415,666.04,665.62,1.005]
[1748057516272,0.48642415,666.03,665.62,1.005]
[1748057516478,0.48642415,666.02,665.62,1.005]
[1748057516679,0.48642415,666.01,665.62,1.005]
[1748057516977,0.48642415,666.0,665.62,1.005]
[1748057517172,0.48642415,665.99,665.62,1.005]
[1748057517374,0.48642415,665.98,665.62,1.005]
[1748057517582,0.48642415,665.97,665.62,1.005]
[1748057517779,0.48642415,665.96,665.62,1.005]
[1748057517980,0.48642415,665.95,665.62,1.005]
[1748057518181,1.49756613,666.06,665.62,1.005]
[1748057518380,0.48637415,666.05,665.62,1.005]
[1748057518582,0.48637415,666.04,665.62,1.005]
[1748057518780,0.48636274,666.03,665.62,1.005]
[1748057518981,0.48636274,666.02,665.62,1.005]
[1748057519181,0.48636274,666.01,665.62,1.005]
[1748057519381,0.48636274,666.0,665.62,1.005]
[1748057519579,0.48636274,665.99,665.62,1.005]
[1748057519878,0.48636274,665.98,665.62,1.005]
[1748057520078,0.48636274,665.97,665.62,1.005]
[1748057520278,0.48636274,665.96,665.63,1.129]
[1748057520477,1.49756613,666.06,665.63,1.129]
[1748057520677,0.4863543,666.05,665.63,1.129]
[1748057520881,0.4863543,666.04,665.64,1.806]
[1748057521180,0.4863543,666.03,665.64,1.806]
[1748057521380,0.4863543,666.02,665.64,1.806]
[1748057521581,0.4863543,666.01,665.64,1.806]
[1748057521780,0.4863543,666.0,665.64,1.806]
[1748057521981,0.4863543,665.99,665.64,1.806]
[1748057522281,0.4863543,665.98,665.64,1.806]
[1748057522481,0.4863543,665.97,665.64,1.806]
[1748057522778,0.4863543,665.96,665.64,1.806]
[1748057523076,0.4863543,665.95,665.64,1.806]
[1748057523281,0.4863543,665.94,665.64,1.806]
[1748057523580,0.4863543,665.93,665.64,1.806]
[1748057523874,0.4863543,665.92,665.64,1.806]
[1748057524079,0.4863543,665.91,665.64,1.806]
[1748057524280,0.4863543,665.9,665.64,1.806]
[1748057524476,0.4863543,665.89,665.64,1.806]
[1748057524683,0.4863543,665.88,665.64,1.806]
[1748057524877,0.4863543,665.87,665.64,1.806]
[1748057525081,0.4863543,665.86,665.64,1.806]
[1748057525280,1.49756613,665.98,665.64,1.806]
[1748057525482,0.48622774,665.97,665.64,1.806]
[1748057525681,0.48622774,665.96,665.64,1.806]
[1748057525883,0.48622774,665.95,665.64,1.806]
[1748057526181,0.48622774,665.94,665.64,1.806]
[1748057526381,0.48622774,665.93,665.64,1.806]
[1748057526581,0.48622774,665.92,665.64,1.806]
[1748057526785,0.48622774,665.91,665.64,1.806]
[1748057526985,0.48622774,665.9,665.64,1.806]
[1748057527177,0.48614968,665.89,665.64,1.806]
[1748057527477,0.48614968,665.88,665.64,1.806]
[1748057527677,0.48614968,665.87,665.64,1.806]
[1748057527881,0.48614968,665.86,665.64,1.806]
[1748057528079,1.49756613,665.98,665.64,1.806]
[1748057528279,0.48621989,665.97,665.64,1.806]
[1748057528478,0.48621989,665.96,665.64,1.806]
[1748057528684,0.48619655,665.95,665.64,1.806]
[1748057528983,0.48619655,665.94,665.64,1.806]
[1748057529184,0.48619655,665.93,665.64,1.806]
[1748057529384,0.48619655,665.92,665.64,1.806]
[1748057529585,0.48619655,665.91,665.64,1.806]
[1748057529785,0.48619655,665.9,665.64,1.806]
[1748057529987,0.48619655,665.89,665.64,1.806]
[1748057530287,0.48619655,665.88,665.64,1.806]
[1748057530485,0.48619655,665.87,665.64,1.806]
[1748057530685,0.48619655,665.86,665.64,1.806]
[1748057530985,0.48619655,665.85,665.64,1.806]
[1748057531185,0.48619655,665.84,665.64,1.806]
[1748057531387,0.48619655,665.83,665.64,1.806]
[1748057531587,0.48619655,665.82,665.64,1.806]
[1748057531886,0.48619655,665.81,665.64,1.806]
[1748057532088,0.48619655,665.8,665.64,1.806]
[1748057532286,1.49756613,665.88,665.64,1.806]
[1748057532287,0.48619655,665.79,665.64,1.806]
[1748057532582,0.48619655,665.78,665.64,1.806]
[1748057532788,0.48619655,665.77,665.64,1.806]
[1748057532982,0.48619655,665.76,665.64,1.806]
[1748057533183,0.48619655,665.75,665.64,1.806]
[1748057533383,0.48619655,665.74,665.64,1.806]
[1748057533687,1.49756613,665.88,665.64,1.806]
[1748057533887,0.48579621,665.87,665.64,1.806]
[1748057534090,0.48579621,665.86,665.64,1.806]
[1748057534290,0.48579621,665.85,665.64,1.806]
[1748057534586,0.48581065,665.84,665.64,1.806]
[1748057534786,0.48581065,665.83,665.64,1.806]
[1748057534990,0.48581065,665.82,665.64,1.806]
[1748057535187,0.48581065,665.81,665.64,1.806]
[1748057535388,0.48581065,665.8,665.64,1.806]
[1748057535589,0.48581065,665.79,665.64,1.806]
[1748057535883,0.48581065,665.78,665.64,1.806]
[1748057536090,0.48581065,665.77,665.64,1.806]
[1748057536290,0.48565416,665.76,665.64,1.806]
[1748057536589,0.48565416,665.75,665.64,1.806]
[1748057536790,0.48565416,665.74,665.64,1.806]
[1748057536984,0.48565416,665.73,665.64,1.806]
[1748057537285,0.48565416,665.72,665.64,1.806]
[1748057537488,0.48565416,665.71,665.64,1.806]
[1748057537783,1.49756613,665.82,665.64,1.806]
[1748057537988,0.48553264,665.81,665.64,1.806]
[1748057538188,0.48553264,665.8,665.64,1.806]
[1748057538391,0.48553264,665.79,665.64,1.806]
[1748057538589,0.48553264,665.78,665.64,1.806]
[1748057538790,1.49756613,665.86,665.64,1.806]
[1748057538791,0.48553264,665.77,665.64,1.806]
[1748057539091,1.49756613,665.86,665.64,1.806]
[1748057539092,0.48553264,665.76,665.64,1.806]
[1748057539290,0.48553264,665.75,665.64,1.806]
[1748057539491,0.48553264,665.74,665.64,1.806]
[1748057539790,0.48553264,665.73,665.64,1.806]
[1748057539989,0.48553264,665.72,665.64,1.806]
[1748057540190,1.49756613,665.86,665.64,1.806]
[1748057540391,0.4854316,665.85,665.64,1.806]
[1748057540591,0.4854316,665.84,665.64,1.806]
[1748057540789,0.4854316,665.83,665.64,1.806]
[1748057540985,0.4854316,665.82,665.64,1.806]
[1748057541184,0.4854316,665.81,665.64,1.806]
[1748057541389,0.4854316,665.8,665.64,1.806]
[1748057541591,0.4854316,665.79,665.64,1.806]
[1748057541790,0.4854316,665.78,665.64,1.806]
[1748057541990,0.4854316,665.77,665.64,1.806]
[1748057542190,0.4854316,665.76,665.64,1.806]
[1748057542390,0.4854316,665.75,665.64,1.806]
[1748057542689,0.4854316,665.74,665.64,1.806]
[1748057542890,0.4854316,665.73,665.64,1.806]
[1748057543089,0.4854316,665.72,665.64,1.806]
[1748057543286,0.4854316,665.71,665.64,1.806]
[1748057543488,1.49756613,665.84,665.64,1.806]
[1748057543786,0.48534768,665.83,665.64,1.806]
[1748057543988,0.48534768,665.82,665.64,1.806]
[1748057544189,0.48534768,665.81,665.64,1.806]
[1748057544388,0.48534768,665.8,665.64,1.806]
[1748057544587,0.48534768,665.79,665.64,1.806]
[1748057544885,0.48534768,665.78,665.64,1.806]
[1748057545089,0.48534768,665.77,665.64,1.806]
[1748057545292,0.48534768,665.76,665.64,1.806]
[1748057545494,0.48534768,665.75,665.64,1.806]
[1748057545696,0.48534768,665.74,665.64,1.806]
[1748057545896,0.48534768,665.73,665.64,1.806]
[1748057546096,0.48534768,665.72,665.64,1.806]
[1748057546298,0.48534768,665.71,665.64,1.806]
[1748057546596,1.49756613,665.84,665.64,1.806]
[1748057546796,0.48539946,665.83,665.64,1.806]
[1748057546994,0.48539946,665.82,665.64,1.806]
[1748057547195,0.48539373,665.81,665.64,1.806]
[1748057547490,0.48539373,665.8,665.64,1.806]
[1748057547692,0.48539373,665.79,665.64,1.806]
[1748057547892,0.48539373,665.78,665.64,1.806]
[1748057548097,0.48539373,665.77,665.64,1.806]
[1748057548298,0.48539373,665.76,665.64,1.806]
[1748057548498,0.48539373,665.75,665.64,1.806]
[1748057548699,0.48539373,665.74,665.64,1.806]
[1748057548894,0.48549389,665.73,665.64,1.806]
[1748057549098,0.48549389,665.72,665.64,1.806]
[1748057549299,0.48549389,665.71,665.64,1.806]
[1748057549499,1.49756613,665.81,665.64,1.806]
[1748057549695,0.48555295,665.8,665.64,1.806]
[1748057549900,0.48555295,665.79,665.63,1.129]
[1748057550098,0.48555295,665.78,665.63,1.129]
[1748057550399,0.48555295,665.77,665.63,1.129]
[1748057550599,0.48555295,665.76,665.63,1.129]
[1748057550800,0.48562592,665.75,665.63,1.129]
[1748057551001,0.48562592,665.74,665.63,1.129]
[1748057551200,0.48562592,665.73,665.63,1.129]
[1748057551400,0.48562592,665.72,665.63,1.129]
[1748057551594,0.48562592,665.71,665.63,1.129]
[1748057551799,0.48562592,665.7,665.63,1.129]
[1748057551998,1.49756613,665.79,665.63,1.129]
[1748057552199,0.48571059,665.78,665.63,1.129]
[1748057552399,0.48571059,665.77,665.63,1.129]
[1748057552599,0.48577965,665.76,665.63,1.129]
[1748057552897,0.48577965,665.75,665.63,1.129]
[1748057553096,0.48577965,665.74,665.63,1.129]
[1748057553400,0.48577965,665.73,665.63,1.129]
[1748057553700,0.48577965,665.72,665.63,1.129]
[1748057554001,0.48577965,665.71,665.63,1.129]
[1748057554199,0.48577965,665.7,665.61,1.245]
[1748057554402,1.49756613,665.79,665.61,1.245]
[1748057554596,0.48578404,665.78,665.61,1.245]
[1748057554802,1.98335017,665.77,665.61,1.245]
[1748057555002,0.48578404,665.76,665.61,1.245]
[1748057555206,0.48578404,665.75,665.61,1.245]
[1748057555504,0.48578404,665.74,665.61,1.245]
[1748057555703,0.48578404,665.73,665.61,1.245]
[1748057555901,0.48578404,665.72,665.61,1.245]
[1748057556106,0.48578404,665.71,665.61,1.245]
[1748057556307,0.48578128,665.7,665.61,1.245]
[1748057556502,1.49756613,665.77,665.61,1.245]
[1748057556702,0.48578372,665.76,665.61,1.245]
[1748057556901,0.48578372,665.75,665.61,1.245]
[1748057557105,0.48578372,665.74,665.61,1.245]
[1748057557300,0.48578372,665.73,665.61,1.245]
[1748057557506,0.48578372,665.72,665.61,1.245]
[1748057557801,0.48578372,665.71,665.61,1.245]
[1748057558001,0.48578372,665.7,665.61,1.245]
[1748057558309,1.49756613,665.78,665.61,1.245]
[1748057558508,0.48579264,665.77,665.61,1.245]
[1748057558708,0.48579264,665.76,665.61,1.245]
[1748057558909,0.48579264,665.75,665.61,1.245]
[1748057559107,0.4858027,665.74,665.61,1.245]
[1748057559305,0.4858027,665.73,665.61,1.245]
[1748057559517,0.4858027,665.72,665.61,1.245]